Cogmind - Beta 11 X7 @@@ ROGUE MODE // 2021.09.03 @ 04:51:43 Player: spruce Result: Destroyed by as-96122 with Assembled Blade Performance ------------- Evolutions (0) 0 Regions Visited (2) 400 Robots Destroyed (27) 135 Value Destroyed (613) 613 Prototype IDs (0) 0 Alien Tech Used (0) 0 Bonus (0) 0 TOTAL SCORE: 1148 Bonus ------- None Cogmind --------- Core Integrity 0/250 Matter 234/300 Energy 105/125 System Corruption 0% Temperature Cool (0) Movement Core (1450) Ox28 Location -10/Mines Parts ------- > --- POWER (1) -------- Light Ion Engine > --- PROPULSION (2) --- (None) > --- UTILITY (2) ------ Huge Storage Unit > --- WEAPON (2) ------- Rocket Launcher > --- INVENTORY (25) --- Light Angular Momentum Engine Light Treads Light Treads Carbon-fiber Leg Improved Heat Sink Small Storage Unit High-capacity Matter Pod (133) Beamcaster Particle Cannon Particle Cannon Particle Cannon Light Cannon Light Cannon Rocket Launcher Rocket Launcher Peak State ------------ > --- POWER ------------ Light Ion Engine > --- PROPULSION ------- Compact Wheel Compact Wheel > --- UTILITY ---------- Improved Heat Sink Huge Storage Unit > --- WEAPON ----------- EM Pulse Gun Particle Cannon > --- INVENTORY -------- Light Treads Light Treads Wheel Wheel Small Storage Unit High-capacity Matter Pod Particle Cannon Particle Cannon Particle Cannon Light Cannon Rocket Launcher Rocket Launcher Rocket Launcher Rocket Launcher [Rating: 12] Favorites ----------- Power Ion Engine Engine Ion Engine Propulsion Compact Wheel Wheel Compact Wheel Utility Small Storage Unit Device Improved Heat Sink Storage Small Storage Unit Weapon Particle Cannon Energy Gun EM Pulse Gun Energy Cannon Particle Cannon Ballistic Gun Assault Rifle Ballistic Cannon Light Cannon Launcher Rocket Launcher Build | -11 -10 -10 ------- Run | Scr Mat Min Slots Evolved . | . . . Power . | . . . Propulsion . | . . . Utility . | . . . Weapon . | . . . Parts Attached 34 | 7 18 9 Power 4 | 1 2 1 Engine 4 | 1 2 1 Core . | . . . Reactor . | . . . Propulsion 8 | 2 4 2 Treads . | . . . Leg . | . . . Wheel 8 | 2 4 2 Hover . | . . . Flight . | . . . Utility 3 | 1 2 . Device 1 | . 1 . Storage 2 | 1 1 . Processor . | . . . Hackware . | . . . Protection . | . . . Artifact . | . . . Weapon 19 | 3 10 6 Energy Gun 5 | 2 3 . Energy Cannon 5 | . 3 2 Ballistic Gun 3 | 1 2 . Ballistic Cannon 2 | . 1 1 Launcher 4 | . 1 3 Special Weapon . | . . . Impact Weapon . | . . . Slashing Weapon . | . . . Piercing Weapon . | . . . Special Melee Weapon . | . . . Unidentified Prototypes . | . . . Parts Lost 12 | . 3 9 Power 2 | . 1 1 Propulsion 5 | . 1 4 Utility 1 | . . 1 Weapon 4 | . 1 3 Highest Loss Streak 4 | . 2 4 Average Slot Usage (%) 85 | . 88 78 Engine 11 | . 12 10 Wheel 23 | . 22 24 Device 7 | . 10 . Storage 14 | . 14 14 Energy Gun 3 | . 4 . Energy Cannon 12 | . 11 12 Ballistic Gun 7 | . 10 . Ballistic Cannon 4 | . . 12 Naked Turns . | . . . Heaviest Build 90 | 14 90 90 Greatest Support 32 | 26 32 32 Greatest Overweight (x) 5 | 1 3 5 Average Overweight (x) 1 | . . 3 Largest Inventory Capacity 25 | 8 25 25 Average Capacity 14 | 7 10 25 Most Carried 16 | 8 14 16 Average Carried 10 | 4 8 14 Final Capacity 25 | 8 25 25 Final Carried 15 | 6 14 15 Class Distribution -------------------- 100% | Mutant Dominant Class ---------------- Mutant | -10/Materials Mutant | -10/Mines Resources | -11 -10 -10 ----------- Run | Scr Mat Min Matter Collected 871 | 240 356 275 Remotely . | . . . Salvage Created 924 | . 611 313 Parts 50 | . 36 14 Haulers Intercepted 2 | . 2 . Recyclers Shooed 2 | . . 2 Parts Field Recycled . | . . . Retrieved Matter . | . . . Parts Self-Destructed . | . . . Prevented . | . . . Kills | -11 -10 -10 ------- Run | Scr Mat Min Combat Hostiles Destroyed 26 | . 12 14 Guns 3 | . 3 . Cannons 8 | . 6 2 AOE 15 | . 3 12 Classes Destroyed 7 | . 5 2 Hauler 2 | . 2 . Recycler 3 | . . 3 Operator 1 | . 1 . Watcher 2 | . 2 . Swarmer 8 | . 3 5 Grunt 11 | . 9 2 Assembled 7 | . . 7 Best Kill Streak 7 | . 5 7 Combat Bots Only 7 | . 4 7 Max Kills in Single Turn 4 | . 3 4 Gunslinging . | . . . Exploded 4 | . 3 4 Melee . | . . . Uniques/NPCs Destroyed . | . . . Combat | -11 -10 -10 -------- Run | Scr Mat Min Damage Taken 1143 | . 508 635 Core 274 | . 92 182 Absorbed by Shields . | . . . Core Remaining (%) 100 | 100 . . Volleys Fired 93 | . 64 29 Largest 2 | . 2 2 Hottest 136 | . 136 136 Shots Fired 154 | . 112 42 Gun 65 | . 61 4 Cannon 78 | . 50 28 Launcher 11 | . 1 10 Special . | . . . Kinetic 61 | . 49 12 Thermal 71 | . 55 16 Explosive 11 | . 1 10 Electromagnetic 11 | . 7 4 Robot Hit Streak 9 | . 7 9 Robot Miss Streak 4 | . 4 2 Penetration Max . | . . . Secondary Targets . | . . . Shots Hit Robots 95 | . 72 23 Core Hits 50 | . 25 25 Critical Kills . | . . . Critical Parts Destroyed . | . . . Critical Strikes 3 | . 3 . Burn 1 | . 1 . Blast 2 | . 2 . Melee Attacks . | . . . Impact . | . . . Slashing . | . . . Piercing . | . . . Sneak Attacks . | . . . Combat Hostiles . | . . . Follow-up Attacks . | . . . Damage Inflicted 2478 | . 1285 1193 Guns 528 | . 500 28 Cannons 1062 | . 692 370 Explosions 888 | . 93 795 Melee . | . . . Ramming . | . . . Kinetic 552 | . 408 144 Thermal 974 | . 694 280 Explosive 834 | . 93 741 Electromagnetic 118 | . 90 28 Impact . | . . . Slashing . | . . . Piercing . | . . . Highest Corruption . | . . . Average Corruption . | . . . Corruption Purged . | . . . Overload Shots . | . . . Overflow Damage 47 | . 7 40 Projectiles 13 | . 7 6 Explosions 34 | . . 34 Melee . | . . . Knockbacks 4 | . 3 1 Impact . | . . . Kinetic 4 | . 3 1 Secondary . | . . . Self-Inflicted Damage 89 | . . 89 Shots 4 | . . 4 Rammed . | . . . Targets Rammed . | . . . Kicked . | . . . Crushed . | . . . Highest Temperature 266 | . 252 266 Average Temperature 83 | . 84 81 Received Heat Transfer 577 | . 300 277 Effects 2 | . . 2 Interference 2 | . . 2 Siege Activations . | . . . Robots Corrupted . | . . . Combat Hostiles . | . . . Parts Fried . | . . . Impact Corruptions . | . . . Robots Melted . | . . . Combat Hostiles . | . . . Parts Melted 4 | . 4 . Heat Transferred 1950 | . 1443 507 Parts Sabotaged . | . . . Parts Stolen . | . . . Parts Stripped . | . . . Power Chain Reactions 1 | . . 1 Missiles Intercepted . | . . . Alert | -11 -10 -10 ------- Run | Scr Mat Min Peak Influence 241 | . 226 241 Initial 46 | . . 46 Average 108 | . 91 156 Maximum Alert Level 1 | . 1 1 Low Security (%) 77 | 100 90 46 Level 1 22 | . 9 53 Level 2 . | . . . Level 3 . | . . . Level 4 . | . . . Level 5 . | . . . High Security . | . . . Max Security . | . . . Squads Dispatched 2 | . 2 . Investigation 1 | . 1 . Extermination . | . . . Reinforcement 1 | . 1 . Assault . | . . . Garrison . | . . . Intercept . | . . . Construction Impeded . | . . . Haulers Reinforced . | . . . Active Scanning Responses . | . . . Cargo Convoy Interrupts . | . . . Stealth | -11 -10 -10 --------- Run | Scr Mat Min Distress Signals . | . . . Communications Jammed . | . . . Distress Signals . | . . . Times Spotted 46 | . 23 23 Peak Tracking Total 9 | . 4 9 Tactical Retreats . | . . . Traps | -11 -10 -10 ------- Run | Scr Mat Min Traps Triggered 4 | . 4 . Indirectly . | . . . Trap Hack Attempts . | . . . Triggered . | . . . Disarmed . | . . . Reprogrammed . | . . . Reused . | . . . Traps Extracted . | . . . Installed . | . . . Triggered . | . . . Machines | -11 -10 -10 ---------- Run | Scr Mat Min Machines Disabled 5 | . 1 4 Max in Single Turn 2 | . 1 2 Machines Sabotaged . | . . . Garrisons Compromised . | . . . Overloaded Fab Kills . | . . . Fab Network Shutdowns . | . . . Hacking | -11 -10 -10 --------- Run | Scr Mat Min Machines Accessed 5 | . 5 . Terminals 5 | . 5 . Fabricators . | . . . Repair Stations . | . . . Recycling Units . | . . . Scanalyzers . | . . . Garrison Access . | . . . Total Hacks 8 | . 8 . Successful 3 | . 3 . Failed 5 | . 5 . Catastrophic . | . . . Database Lockouts . | . . . Manual 7 | . 7 . Terminals 8 | . 8 . Fabricators . | . . . Repair Stations . | . . . Recycling Units . | . . . Scanalyzers . | . . . Garrison Access . | . . . Terminal Hacks 2 | . 2 . Record 1 | . 1 . Registered Components 1 | . 1 . Fabricator Hacks . | . . . Repair Station Hacks . | . . . Recycling Unit Hacks . | . . . Scanalyzer . | . . . Garrison Access Hacks . | . . . Unauthorized Hacks 1 | . 1 . Terminals 1 | . 1 . Operators 1 | . 1 . Fabricators . | . . . Repair Stations . | . . . Recycling Units . | . . . Scanalyzers . | . . . Garrison Access . | . . . Data Cores Recovered 1 | . 1 . Used . | . . . Hacking Detections 3 | . 3 . Full Trace Events . | . . . Feedback Events . | . . . Feedback Blocked . | . . . Robot Schematics Acquired . | . . . Robots Built . | . . . Matter . | . . . Time . | . . . Total Robot Build Rating . | . . . Part Schematics Acquired . | . . . Parts Built . | . . . Matter . | . . . Time . | . . . Total Part Build Rating . | . . . Parts Repaired . | . . . Time . | . . . Parts Recycled . | . . . Recycled Matter . | . . . Retrieved Matter . | . . . Retrieved Components . | . . . Parts Scanalyzed . | . . . Part Schematics Acquired . | . . . Parts Damaged . | . . . Bothacking | -11 -10 -10 ------------ Run | Scr Mat Min Used RIF Installer . | . . . Robots Hacked . | . . . Non-combat . | . . . Combat . | . . . Robot Hacks Applied . | . . . Relay Couplers Released . | . . . Robots Rewired . | . . . Allies Hacked . | . . . Hacks Repelled . | . . . Allies | -11 -10 -10 -------- Run | Scr Mat Min Total Allies . | . . . Largest Group . | . . . Highest-Rated Group . | . . . Highest-Rated Ally . | . . . Total Orders . | . . . Ally Attacks . | . . . Total Damage . | . . . Kills . | . . . Allies Corrupted . | . . . Allies Melted . | . . . Intel | -11 -10 -10 ------- Run | Scr Mat Min Robot Analysis Total . | . . . Derelict Logs Recovered 3 | . . 3 Drone Launches . | . . . Drone Recoveries . | . . . Exploration | -11 -10 -10 ------------- Run | Scr Mat Min Turns Passed 1807 | 63 1192 552 Spaces Moved 1258 | 53 880 325 Core 10 | 6 4 . Treads . | . . . Legs . | . . . Wheels 1248 | 47 876 325 Hover . | . . . Flight . | . . . Fastest Speed 50 | 50 90 130 Average Speed 113 | 86 104 141 Slowest Speed 200 | 100 200 175 Overloaded Moves . | . . . Propulsion Burnouts . | . . . Robots Hopped . | . . . Cave-ins Triggered . | . . . Exploration Rate (%) 59 | 4 99 74 Regions Visited 2 Branch Regions 1 Pre-discovered Areas 1 | . . 1 Known Exits Taken . | . . . Unknown Exits Taken 2 | 1 1 . Scrap Searched . | . . . Spaces Dug 41 | . . 41 Terrain Destroyed 100 | . 6 94 Melee . | . . . Projectile . | . . . AOE 100 | . 6 94 Terrain Rammed . | . . . Walls Destroyed . | . . . Machines Disabled . | . . . Actions | -11 -10 -10 --------- Run | Scr Mat Min Total 1475 | 68 1034 373 Wait 56 | . 51 5 Move 1256 | 52 879 325 Hop . | . . . Pick Up 26 | 8 13 5 Fast Attach 16 | 4 11 1 Attach 8 | 3 1 4 Detach 1 | 1 . . Swap 10 | . 6 4 Drop 9 | . 9 . Fire 93 | . 64 29 Melee . | . . . Ram . | . . . Kick . | . . . Crush . | . . . Escape Stasis . | . . . Rewire . | . . . Trap . | . . . Miscellaneous . | . . . Route ------- -11/Scrapyard -10/Materials (discovered 4 exits: [*Mat x3] / [*Min]) -10/Mines (discovered 2 exits: [*Mat x2]) History --------- Turn | Location | Event 20 | -11/Scrapyard | Discovered new exit (range 15) 64 | -11/Scrapyard | Entered Materials 296 | -10/Materials | Discovered new exit (range 9) 311 | -10/Materials | Discovered new exit (range 16) 317 | -10/Materials | Build established: Mutant 484 | -10/Materials | Discovered new exit (range 3) 643 | -10/Materials | Discovered new exit (range 3) 1256 | -10/Materials | Entered Mines 1269 | -10/Mines | Met a Derelict bent on vengeance 1278 | -10/Mines | Core integrity fell below 50% 1320 | -10/Mines | Lost 4 parts (1p1n1u1w) 1325 | -10/Mines | Discovered new exit (range 10) 1625 | -10/Mines | Discovered new exit (range 13) 1769 | -10/Mines | Assembled infested the area 1770 | -10/Mines | Learned location of 1 exit from Materials 1799 | -10/Mines | Core integrity fell below 20% 1808 | -10/Mines | Destroyed by as-96122 with Assembled Blade Last Messages --------------- 01743_ K-01 Serf cleans the Laser Drill. 01769_ ALERT: Infestation in the mines, dispatching Demolisher response squad. 01770_ Acquired derelict log, extracted data. Data stored: Materials exits (x1). 01796_ as-86224 destroyed. 01796_ as-56279 destroyed. 01797_ Wheel destroyed. 01798_ as-77955 destroyed. 01798_ as-46822 destroyed. 01798_ as-77527 destroyed. 01798_ as-46341 destroyed. 01800_ T-07 Excavator destroyed. 01802_ Destroyed Asb. F-torch. 01804_ The unstable cave ceiling collapses. 01804_ Particle Cannon destroyed. 01804_ Destroyed Particle Cannon. 01804_ as-43894 destroyed. 01804_ Rocket Launcher destroyed. 01807_ Com. Wheel destroyed. Map ----- +----------------------------------------------------+ | ???????????????????????????????????????????????# | | ???????????????????????????????????????????????# | | ???????????????????????????????????????????????# | | ????????????????????????????????????????????????? | | ???????????????????????????????????????????????? | | ???????????????????????????????????????????????# | | ???????????????????????????????????????????????### | | ???????????????????????????????????????????????# | | ???????????????????????????????????????????????# | | ???????????????????????????????????????????????# | | ???????????????????????????????????????????????# | | ???????????????????????????????????????????????# < | | ???????????????????????????????????????????????# | | ??????????????????????????????#????????????????# | | ????????????????????????????? #????????????????# | | ????????????????????????????? ????????????????# | | ????????????????????????????? #????????????????### | | ???????????????????????????##a####???????????????? | | ??????????????????????????? aa | ##??????????????? | | ??????????????????????????? # #??????????????? | | ????????????????????????###a a #??#???????????? | | ???????????????????????## #a # #???????????? | | ???????????????????????? # ????????? | | ?????????################ < #??????????? | | ???????# a #????????? | | ?????????############# @ a ???????? | | ????????????????????# #?????????? | | ????????????????????# ## # #????????? | | ????????????????????## ###### ##??????#??????? | | ?????????????????????####????# #??????? #????? | | ????????????????????????????## #???????# #????? | | ?????????????????????#####?## ##???????# #????? | | ????????????????###### ### #????????# #????? | | ???????????????## ##?????### #####? | | ???????????????# ##????# #? | | ???????????????# #????# """ #? | | ???????????????## ## #????# """ #? | | ????????????????### ### ##### ###### """ ## | | ??????????????????## #?####???## | | ???????????###?????# #?????????## """ ## | | ??????????# ##????# #??????????######## """ #? | | ????????## [ #????# #?????????????????# """ #? | | ????????# = #????# #?????????????????# #? | | ????????#! #?????# #?????????????????#########? | | ????????# #?????# #??????????????????????????# | | ???????## #??????# #????????????????????####??# | | ??????## ######### #???????????????????## ##?# | | ?????## ! ##?# #???????????????????# #?# | | ?????# #### #???????????????????# #?? | | ?????# ! #######???????????????????# #??? | +----------------------------------------------------+ Best States ------------- Heat Dissipation 39 Energy Generation 10 Energy Capacity 250 Matter Stores 300 Matter Capacity 300 Sight Range 16 Terrain Scan Density 10 Evasion (%) 42 Item Schematics ----------------- None Robot Schematics ------------------ None Fabricated ------------ Nothing Alien Tech Used ----------------- None Achievements -------------- None Challenges ------------ None Game ------ Seed MobileRegenerativeEdition Manual? 0 Play Time 00:15:44 Cumulative 208.4 hours Start 2021.09.03 @ 04:39:05 End 2021.09.03 @ 04:51:43 Sessions 1 Manual Loads 0 Difficulty Rogue Special Mode None Game No. 261 Rogue 261 Adventurer 0 Explorer 0 Win Type - Total 11 Types 3/3/0/1/1/3/0/0/0 Lore% 91 Gallery% 89 Achievement% 73 Wizard Run 0 Options --------- ASCII 0 Keyboard 0 Movement Numpad Keybinds 0 Fullscreen 2 Font 24/Smallcaps Map View 76x50 Tactical HUD 1 Map Filters NONE Filters NONE Steam 1 RUN: 9f3aa6d2-4787-4d3f-aa6b-a272094b0d31